[Event "Titled Tuesday Blitz March 21 Early 2023"]
[White "Fule, Simon"]
[Black "Singgih, Diajeng Theresa"]
[WhiteFideId "787515"]
[BlackFideId "7104391"]
[WhiteElo "2371"]
[BlackElo "1891"]
[Result "1-0"]
[Round "03"]
[TimeControl "180+2"]
[Date "2023.03.21"]
[WhiteClock "0:00:19"]
[BlackClock "0:00:24"]

1. e4 {[%clk 0:03:00]}  e5 {[%clk 0:03:00]} 2. Nf3 {[%clk 0:03:01]}  Nc6 {[%clk 0:03:00]} 3. Bb5 {[%clk 0:03:01]}  a6 {[%clk 0:03:00]} 4. Ba4 {[%clk 0:03:01]}  Nf6 {[%clk 0:02:59]} 5. O-O {[%clk 0:03:01]}  b5 {[%clk 0:02:59]} 6. Bb3 {[%clk 0:03:01]}  Bc5 {[%clk 0:02:59]} 7. a4 {[%clk 0:02:59]}  b4 {[%clk 0:02:58]} 8. Re1 {[%clk 0:02:56]}  O-O {[%clk 0:02:59]} 9. h3 {[%clk 0:02:55]}  d6 {[%clk 0:02:59]} 10. c3 {[%clk 0:02:55]}  Bb7 {[%clk 0:02:59]} 11. d4 {[%clk 0:02:49]}  Bb6 {[%clk 0:02:56]} 12. Bg5 {[%clk 0:02:40]}  h6 {[%clk 0:02:55]} 13. Bh4 {[%clk 0:02:38]}  g5 {[%clk 0:02:55]} 14. Bg3 {[%clk 0:02:19]}  Re8 {[%clk 0:02:54]} 15. d5 {[%clk 0:02:07]}  Ne7 {[%clk 0:02:52]} 16. cxb4 {[%clk 0:02:07]}  Ng6 {[%clk 0:02:48]} 17. a5 {[%clk 0:02:02]}  Ba7 {[%clk 0:02:47]} 18. Nbd2 {[%clk 0:01:56]}  Nh5 {[%clk 0:02:46]} 19. Nf1 {[%clk 0:01:54]}  Ngf4 {[%clk 0:02:34]} 20. Kh2 {[%clk 0:01:43]}  Qd7 {[%clk 0:02:33]} 21. Ne3 {[%clk 0:01:35]}  Bxe3 {[%clk 0:02:17]} 22. fxe3 {[%clk 0:01:35]}  g4 {[%clk 0:02:17]} 23. exf4 {[%clk 0:01:30]}  gxf3 {[%clk 0:02:17]} 24. Qxf3 {[%clk 0:01:31]}  exf4 {[%clk 0:02:11]} 25. Bxf4 {[%clk 0:01:22]}  Nxf4 {[%clk 0:02:06]} 26. Qxf4 {[%clk 0:01:23]}  Kh7 {[%clk 0:02:02]} 27. e5 {[%clk 0:01:06]}  dxe5 {[%clk 0:01:55]} 28. Bc2+ {[%clk 0:01:02]}  Kg7 {[%clk 0:01:51]} 29. Rxe5 {[%clk 0:00:55]}  Qd6 {[%clk 0:01:40]} 30. Qg3+ {[%clk 0:00:52]}  Kh8 {[%clk 0:01:34]} 31. Rae1 {[%clk 0:00:46]}  Rg8 {[%clk 0:01:24]} 32. Qd3 {[%clk 0:00:33]}  Rg7 {[%clk 0:00:59]} 33. Kh1 {[%clk 0:00:24]}  Rag8 {[%clk 0:00:56]} 34. Re8 {[%clk 0:00:23]}  Qg6 {[%clk 0:00:39]} 35. Qxg6 {[%clk 0:00:21]}  fxg6 {[%clk 0:00:37]} 36. Rxg8+ {[%clk 0:00:21]}  Kxg8 {[%clk 0:00:36]} 37. Re8+ {[%clk 0:00:22]}  Kh7 {[%clk 0:00:34]} 38. Be4 {[%clk 0:00:17]}  Rd7 {[%clk 0:00:30]} 39. Kg1 {[%clk 0:00:13]}  Bxd5 {[%clk 0:00:29]} 40. Bxd5 {[%clk 0:00:14]}  Rxd5 {[%clk 0:00:29]} 41. Re7+ {[%clk 0:00:14]}  Kg8 {[%clk 0:00:29]} 42. Rxc7 {[%clk 0:00:15]}  Rb5 {[%clk 0:00:26]} 43. Rc6 {[%clk 0:00:15]}  Kf7 {[%clk 0:00:25]} 44. Rb6 {[%clk 0:00:14]}  Rxb4 {[%clk 0:00:25]} 45. Rxb4 {[%clk 0:00:15]}  Kf6 {[%clk 0:00:25]} 46. Rb6+ {[%clk 0:00:15]}  Kf7 {[%clk 0:00:24]} 47. Rxa6 {[%clk 0:00:16]}  Kg7 {[%clk 0:00:24]} 48. Rb6 {[%clk 0:00:17]}  Kf7 {[%clk 0:00:24]} 49. a6 {[%clk 0:00:18]}  Ke7 {[%clk 0:00:24]} 50. a7 {[%clk 0:00:19]} 1-0


[Site "https://www.chess.com"]

[Event "Titled Tuesday Blitz March 21 Early 2023"]
[White "Mirzanurov, Bulat"]
[Black "Vargas Pereda, Jesus Manue"]
[WhiteFideId "4184521"]
[BlackFideId "5115710"]
[WhiteElo "2019"]
[BlackElo "1914"]
[Result "1-0"]
[Round "03"]
[TimeControl "180+2"]
[Date "2023.03.21"]
[WhiteClock "0:00:58"]
[BlackClock "0:00:28"]

1. e4 {[%clk 0:03:00]}  c6 {[%clk 0:02:59]} 2. d4 {[%clk 0:02:59]}  d5 {[%clk 0:02:59]} 3. e5 {[%clk 0:02:59]}  Bf5 {[%clk 0:02:59]} 4. h4 {[%clk 0:02:59]}  h5 {[%clk 0:02:58]} 5. Bd3 {[%clk 0:02:59]}  Bxd3 {[%clk 0:02:57]} 6. Qxd3 {[%clk 0:03:00]}  e6 {[%clk 0:02:58]} 7. Nf3 {[%clk 0:02:58]}  Qa5+ {[%clk 0:02:57]} 8. Nbd2 {[%clk 0:02:58]}  Qa6 {[%clk 0:02:58]} 9. c4 {[%clk 0:02:57]}  Bb4 {[%clk 0:02:52]} 10. O-O {[%clk 0:02:54]}  Bxd2 {[%clk 0:02:50]} 11. Nxd2 {[%clk 0:02:46]}  Ne7 {[%clk 0:02:48]} 12. a4 {[%clk 0:02:37]}  g6 {[%clk 0:02:45]} 13. b4 {[%clk 0:02:34]}  Nd7 {[%clk 0:02:28]} 14. b5 {[%clk 0:02:30]}  cxb5 {[%clk 0:02:27]} 15. cxb5 {[%clk 0:02:31]}  Qb6 {[%clk 0:02:21]} 16. Ba3 {[%clk 0:02:29]}  Rc8 {[%clk 0:02:17]} 17. a5 {[%clk 0:02:20]}  Qd8 {[%clk 0:02:14]} 18. Nb3 {[%clk 0:02:04]}  O-O {[%clk 0:01:59]} 19. Rac1 {[%clk 0:02:00]}  Re8 {[%clk 0:01:58]} 20. g3 {[%clk 0:01:48]}  Nf5 {[%clk 0:01:34]} 21. a6 {[%clk 0:01:37]}  bxa6 {[%clk 0:01:32]} 22. bxa6 {[%clk 0:01:35]}  Nb6 {[%clk 0:01:31]} 23. Nc5 {[%clk 0:01:32]}  Nc4 {[%clk 0:01:26]} 24. Rfd1 {[%clk 0:01:23]}  Qa5 {[%clk 0:01:22]} 25. Ra1 {[%clk 0:01:14]}  Rb8 {[%clk 0:00:49]} 26. Nd7 {[%clk 0:01:10]}  Kg7 {[%clk 0:00:31]} 27. Bf8+ {[%clk 0:01:04]}  Rxf8 {[%clk 0:00:30]} 28. Rxa5 {[%clk 0:01:05]}  Nxa5 {[%clk 0:00:28]} 29. Nxb8 {[%clk 0:01:05]}  Rxb8 {[%clk 0:00:28]} 30. Qa3 {[%clk 0:00:59]}  Nc4 {[%clk 0:00:28]} 31. Qc5 {[%clk 0:00:58]} 1-0


[Site "https://www.chess.com"]

[Event "Titled Tuesday Blitz March 21 Early 2023"]
[White "Andreikin, Dmitry"]
[Black "Esipenko, Andrey"]
[WhiteFideId "4158814"]
[BlackFideId "24175439"]
[WhiteElo "2736"]
[BlackElo "2615"]
[Result "1/2-1/2"]
[Round "04"]
[TimeControl "180+2"]
[Date "2023.03.21"]
[WhiteClock "0:00:34"]
[BlackClock "0:01:10"]

1. d4 {[%clk 0:02:40]}  Nf6 {[%clk 0:02:56]} 2. c4 {[%clk 0:02:39]}  e6 {[%clk 0:02:56]} 3. Nf3 {[%clk 0:02:38]}  d5 {[%clk 0:02:54]} 4. g3 {[%clk 0:02:37]}  Bb4+ {[%clk 0:02:52]} 5. Nbd2 {[%clk 0:02:34]}  O-O {[%clk 0:02:51]} 6. Bg2 {[%clk 0:02:33]}  b6 {[%clk 0:02:52]} 7. O-O {[%clk 0:02:33]}  Bb7 {[%clk 0:02:53]} 8. Ne5 {[%clk 0:02:32]}  Qc8 {[%clk 0:02:52]} 9. cxd5 {[%clk 0:02:26]}  Bxd5 {[%clk 0:02:50]} 10. Ndf3 {[%clk 0:02:25]}  Be7 {[%clk 0:02:46]} 11. Bg5 {[%clk 0:02:21]}  Qb7 {[%clk 0:02:32]} 12. Rc1 {[%clk 0:02:21]}  h6 {[%clk 0:02:19]} 13. Bxf6 {[%clk 0:02:21]}  Bxf6 {[%clk 0:02:20]} 14. Re1 {[%clk 0:02:19]}  Be4 {[%clk 0:02:18]} 15. Qa4 {[%clk 0:02:07]}  c5 {[%clk 0:02:14]} 16. dxc5 {[%clk 0:01:50]}  Bxe5 {[%clk 0:02:13]} 17. Nxe5 {[%clk 0:01:49]}  Bxg2 {[%clk 0:02:13]} 18. c6 {[%clk 0:01:50]}  Qc7 {[%clk 0:01:13]} 19. Kxg2 {[%clk 0:01:39]}  Qxe5 {[%clk 0:01:13]} 20. c7 {[%clk 0:01:39]}  Qd5+ {[%clk 0:01:14]} 21. e4 {[%clk 0:01:32]}  Qb7 {[%clk 0:01:14]} 22. cxb8=Q {[%clk 0:01:19]}  Raxb8 {[%clk 0:01:15]} 23. Red1 {[%clk 0:01:11]}  Rfd8 {[%clk 0:01:16]} 24. Qc6 {[%clk 0:00:48]}  Qxc6 {[%clk 0:01:14]} 25. Rxd8+ {[%clk 0:00:46]}  Rxd8 {[%clk 0:01:15]} 26. Rxc6 {[%clk 0:00:47]}  Rd2 {[%clk 0:01:15]} 27. Rc8+ {[%clk 0:00:46]}  Kh7 {[%clk 0:01:15]} 28. Rc7 {[%clk 0:00:47]}  f6 {[%clk 0:01:13]} 29. Rxa7 {[%clk 0:00:45]}  Rxb2 {[%clk 0:01:13]} 30. Rb7 {[%clk 0:00:36]}  Rxa2 {[%clk 0:01:10]} 31. Rxb6 {[%clk 0:00:37]}  e5 {[%clk 0:01:10]} 32. h4 {[%clk 0:00:36]}  h5 {[%clk 0:01:10]} 33. Rb7 {[%clk 0:00:34]} 1/2-1/2


[Site "https://www.chess.com"]

[Event "Titled Tuesday Blitz March 21 Early 2023"]
[White "Bluebaum, Matthias"]
[Black "Navara, David"]
[WhiteFideId "24651516"]
[BlackFideId "309095"]
[WhiteElo "2638"]
[BlackElo "2675"]
[Result "1/2-1/2"]
[Round "04"]
[TimeControl "180+2"]
[Date "2023.03.21"]
[WhiteClock "0:01:56"]
[BlackClock "0:00:49"]

1. d4 {[%clk 0:03:00]}  Nf6 {[%clk 0:03:00]} 2. c4 {[%clk 0:03:01]}  g6 {[%clk 0:03:01]} 3. Nc3 {[%clk 0:03:01]}  d5 {[%clk 0:03:01]} 4. cxd5 {[%clk 0:03:02]}  Nxd5 {[%clk 0:03:02]} 5. e4 {[%clk 0:03:03]}  Nxc3 {[%clk 0:03:03]} 6. bxc3 {[%clk 0:03:04]}  Bg7 {[%clk 0:03:03]} 7. Nf3 {[%clk 0:03:05]}  c5 {[%clk 0:03:03]} 8. Bb5+ {[%clk 0:03:05]}  Nc6 {[%clk 0:03:02]} 9. O-O {[%clk 0:03:06]}  O-O {[%clk 0:03:02]} 10. Bxc6 {[%clk 0:03:07]}  bxc6 {[%clk 0:03:01]} 11. Qc2 {[%clk 0:03:07]}  cxd4 {[%clk 0:02:42]} 12. cxd4 {[%clk 0:03:08]}  Bg4 {[%clk 0:02:43]} 13. Ne5 {[%clk 0:03:09]}  Qxd4 {[%clk 0:02:43]} 14. Bb2 {[%clk 0:03:09]}  Qb6 {[%clk 0:02:36]} 15. Rab1 {[%clk 0:03:10]}  Bxe5 {[%clk 0:02:16]} 16. Bxe5 {[%clk 0:03:11]}  Qa5 {[%clk 0:02:17]} 17. Bc3 {[%clk 0:03:11]}  Qc5 {[%clk 0:02:17]} 18. Qb2 {[%clk 0:03:11]}  a5 {[%clk 0:02:13]} 19. Bd4 {[%clk 0:03:12]}  Qb4 {[%clk 0:02:12]} 20. Qa1 {[%clk 0:03:12]}  Qd6 {[%clk 0:02:10]} 21. Qc3 {[%clk 0:03:12]}  Be2 {[%clk 0:02:00]} 22. Rfe1 {[%clk 0:03:13]}  Bb5 {[%clk 0:02:01]} 23. a4 {[%clk 0:03:13]}  Bxa4 {[%clk 0:02:01]} 24. Bh8 {[%clk 0:03:14]}  f6 {[%clk 0:02:01]} 25. e5 {[%clk 0:03:15]}  Qd8 {[%clk 0:01:44]} 26. exf6 {[%clk 0:03:15]}  exf6 {[%clk 0:01:45]} 27. Rb7 {[%clk 0:03:15]}  Rf7 {[%clk 0:01:43]} 28. Rxf7 {[%clk 0:03:16]}  Kxf7 {[%clk 0:01:44]} 29. h4 {[%clk 0:03:17]}  Qxh8 {[%clk 0:01:26]} 30. Qc4+ {[%clk 0:03:17]}  Kf8 {[%clk 0:01:26]} 31. Qc5+ {[%clk 0:03:18]}  Kg8 {[%clk 0:01:17]} 32. Qc4+ {[%clk 0:03:18]}  Kf8 {[%clk 0:01:16]} 33. Qxa4 {[%clk 0:03:19]}  Re8 {[%clk 0:01:02]} 34. Rxe8+ {[%clk 0:03:19]}  Kxe8 {[%clk 0:01:03]} 35. Qxc6+ {[%clk 0:03:19]}  Kf7 {[%clk 0:01:03]} 36. Qb7+ {[%clk 0:03:20]}  Kg8 {[%clk 0:01:02]} 37. Qa8+ {[%clk 0:03:16]}  Kg7 {[%clk 0:01:02]} 38. Qa7+ {[%clk 0:03:17]}  Kg8 {[%clk 0:01:02]} 39. Qxa5 {[%clk 0:03:16]}  Qg7 {[%clk 0:01:03]} 40. h5 {[%clk 0:03:11]}  gxh5 {[%clk 0:00:57]} 41. Qxh5 {[%clk 0:03:12]}  Qg6 {[%clk 0:00:57]} 42. Qd5+ {[%clk 0:03:12]}  Qf7 {[%clk 0:00:56]} 43. Qf5 {[%clk 0:03:11]}  Kg7 {[%clk 0:00:56]} 44. g3 {[%clk 0:03:11]}  Qg6 {[%clk 0:00:57]} 45. Qd7+ {[%clk 0:03:11]}  Qf7 {[%clk 0:00:57]} 46. Qd4 {[%clk 0:03:12]}  Qe6 {[%clk 0:00:55]} 47. Kg2 {[%clk 0:03:12]}  h5 {[%clk 0:00:54]} 48. Qa7+ {[%clk 0:03:09]}  Kg6 {[%clk 0:00:54]} 49. Qa8 {[%clk 0:03:07]}  Kg7 {[%clk 0:00:53]} 50. Qa5 {[%clk 0:02:39]}  Kg6 {[%clk 0:00:53]} 51. Qc5 {[%clk 0:02:39]}  h4 {[%clk 0:00:51]} 52. Qc2+ {[%clk 0:02:37]}  Qf5 {[%clk 0:00:47]} 53. Qc4 {[%clk 0:01:59]}  hxg3 {[%clk 0:00:47]} 54. Qg8+ {[%clk 0:01:59]}  Kh6 {[%clk 0:00:48]} 55. Qh8+ {[%clk 0:01:59]}  Kg6 {[%clk 0:00:48]} 56. Qg8+ {[%clk 0:01:59]}  Kh6 {[%clk 0:00:48]} 57. fxg3 {[%clk 0:01:57]}  Qe4+ {[%clk 0:00:47]} 58. Kh2 {[%clk 0:01:56]}  Qe2+ {[%clk 0:00:47]} 59. Kh3 {[%clk 0:01:54]}  Qh5+ {[%clk 0:00:47]} 60. Kg2 {[%clk 0:01:55]}  Qe2+ {[%clk 0:00:48]} 61. Kh3 {[%clk 0:01:55]}  Qh5+ {[%clk 0:00:48]} 62. Kg2 {[%clk 0:01:56]}  Qe2+ {[%clk 0:00:49]} 63. Kh3 {[%clk 0:01:56]} 1/2-1/2


[Site "https://www.chess.com"]

[Event "Titled Tuesday Blitz March 21 Early 2023"]
[White "Bachmann, Axel"]
[Black "Svane, Rasmus"]
[WhiteFideId "3700488"]
[BlackFideId "4657101"]
[WhiteElo "2605"]
[BlackElo "2597"]
[Result "1/2-1/2"]
[Round "04"]
[TimeControl "180+2"]
[Date "2023.03.21"]
[WhiteClock "0:00:24"]
[BlackClock "0:00:08"]

1. c4 {[%clk 0:02:59]}  Nf6 {[%clk 0:02:59]} 2. Nc3 {[%clk 0:02:59]}  e5 {[%clk 0:03:00]} 3. Nf3 {[%clk 0:02:58]}  Nc6 {[%clk 0:03:00]} 4. e3 {[%clk 0:02:58]}  Bb4 {[%clk 0:03:00]} 5. Qc2 {[%clk 0:02:56]}  Bxc3 {[%clk 0:02:59]} 6. Qxc3 {[%clk 0:02:57]}  Qe7 {[%clk 0:03:00]} 7. d4 {[%clk 0:02:52]}  Ne4 {[%clk 0:02:46]} 8. Qd3 {[%clk 0:02:47]}  exd4 {[%clk 0:02:46]} 9. Nxd4 {[%clk 0:02:47]}  Nc5 {[%clk 0:02:46]} 10. Qd1 {[%clk 0:02:42]}  Nxd4 {[%clk 0:02:44]} 11. Qxd4 {[%clk 0:02:41]}  O-O {[%clk 0:02:44]} 12. b4 {[%clk 0:02:35]}  Ne6 {[%clk 0:02:42]} 13. Qc3 {[%clk 0:02:35]}  b6 {[%clk 0:02:41]} 14. Be2 {[%clk 0:01:47]}  Bb7 {[%clk 0:02:40]} 15. O-O {[%clk 0:01:48]}  a5 {[%clk 0:02:40]} 16. b5 {[%clk 0:01:46]}  f5 {[%clk 0:02:34]} 17. f3 {[%clk 0:01:44]}  Rae8 {[%clk 0:02:32]} 18. a4 {[%clk 0:01:32]}  Rf6 {[%clk 0:02:12]} 19. Ra2 {[%clk 0:01:16]}  Rh6 {[%clk 0:02:07]} 20. Rf2 {[%clk 0:01:16]}  d6 {[%clk 0:01:57]} 21. Bd3 {[%clk 0:01:11]}  Rf6 {[%clk 0:01:54]} 22. Rae2 {[%clk 0:01:09]}  Nc5 {[%clk 0:01:52]} 23. Bc2 {[%clk 0:01:09]}  Qe5 {[%clk 0:01:44]} 24. Qxe5 {[%clk 0:01:07]}  dxe5 {[%clk 0:01:39]} 25. Rd2 {[%clk 0:01:08]}  Rf7 {[%clk 0:01:22]} 26. Ba3 {[%clk 0:01:08]}  g6 {[%clk 0:01:05]} 27. Rf1 {[%clk 0:01:05]}  f4 {[%clk 0:01:02]} 28. Bxc5 {[%clk 0:00:56]}  bxc5 {[%clk 0:01:02]} 29. Re1 {[%clk 0:00:57]}  Rfe7 {[%clk 0:00:54]} 30. Be4 {[%clk 0:00:53]}  Bxe4 {[%clk 0:00:41]} 31. fxe4 {[%clk 0:00:54]}  c6 {[%clk 0:00:41]} 32. bxc6 {[%clk 0:00:43]}  Rc8 {[%clk 0:00:41]} 33. Rd6 {[%clk 0:00:41]}  Rec7 {[%clk 0:00:28]} 34. exf4 {[%clk 0:00:42]}  exf4 {[%clk 0:00:28]} 35. Rb1 {[%clk 0:00:42]}  Rxc6 {[%clk 0:00:28]} 36. Rxc6 {[%clk 0:00:42]}  Rxc6 {[%clk 0:00:29]} 37. Rb5 {[%clk 0:00:43]}  Kf7 {[%clk 0:00:21]} 38. Rxa5 {[%clk 0:00:43]}  Ke6 {[%clk 0:00:21]} 39. Kf2 {[%clk 0:00:39]}  Ke5 {[%clk 0:00:21]} 40. Kf3 {[%clk 0:00:39]}  g5 {[%clk 0:00:22]} 41. h3 {[%clk 0:00:39]}  Kd4 {[%clk 0:00:22]} 42. Ra7 {[%clk 0:00:37]}  h6 {[%clk 0:00:21]} 43. Rd7+ {[%clk 0:00:35]}  Kxc4 {[%clk 0:00:22]} 44. e5 {[%clk 0:00:36]}  Kb4 {[%clk 0:00:16]} 45. Rd6 {[%clk 0:00:36]}  Rc8 {[%clk 0:00:14]} 46. e6 {[%clk 0:00:36]}  c4 {[%clk 0:00:15]} 47. e7 {[%clk 0:00:34]}  Re8 {[%clk 0:00:15]} 48. Rd7 {[%clk 0:00:34]}  c3 {[%clk 0:00:14]} 49. Rc7 {[%clk 0:00:33]}  Kb3 {[%clk 0:00:07]} 50. Ke2 {[%clk 0:00:26]}  c2 {[%clk 0:00:03]} 51. Kd2 {[%clk 0:00:26]}  Kxa4 {[%clk 0:00:04]} 52. Kxc2 {[%clk 0:00:23]}  Kb5 {[%clk 0:00:04]} 53. Kd3 {[%clk 0:00:20]}  Kb6 {[%clk 0:00:05]} 54. Rd7 {[%clk 0:00:20]}  Kc6 {[%clk 0:00:05]} 55. Ra7 {[%clk 0:00:20]}  Kd6 {[%clk 0:00:05]} 56. Ke4 {[%clk 0:00:20]}  Rxe7+ {[%clk 0:00:05]} 57. Rxe7 {[%clk 0:00:20]}  Kxe7 {[%clk 0:00:06]} 58. Kf5 {[%clk 0:00:20]}  Kf7 {[%clk 0:00:06]} 59. h4 {[%clk 0:00:21]}  gxh4 {[%clk 0:00:03]} 60. Kxf4 {[%clk 0:00:21]}  h3 {[%clk 0:00:04]} 61. gxh3 {[%clk 0:00:21]}  Kg6 {[%clk 0:00:04]} 62. h4 {[%clk 0:00:21]}  Kh5 {[%clk 0:00:04]} 63. Kg3 {[%clk 0:00:22]}  Kg6 {[%clk 0:00:05]} 64. h5+ {[%clk 0:00:21]}  Kxh5 {[%clk 0:00:05]} 65. Kh3 {[%clk 0:00:22]}  Kg6 {[%clk 0:00:06]} 66. Kh2 {[%clk 0:00:23]}  h5 {[%clk 0:00:07]} 67. Kh1 {[%clk 0:00:24]}  h4 {[%clk 0:00:07]} 68. Kh2 {[%clk 0:00:24]}  h3 {[%clk 0:00:08]} 69. Kxh3 {[%clk 0:00:24]} 1/2-1/2


[Site "https://www.chess.com"]

[Event "Titled Tuesday Blitz March 21 Early 2023"]
[White "Bortnyk, Olexandr"]
[Black "Mitrabha, Guha"]
[WhiteFideId "14120828"]
[BlackFideId "5057000"]
[WhiteElo "2734"]
[BlackElo "2507"]
[Result "1/2-1/2"]
[Round "04"]
[TimeControl "180+2"]
[Date "2023.03.21"]
[WhiteClock "0:00:23"]
[BlackClock "0:00:06"]

1. d4 {[%clk 0:03:00]}  Nf6 {[%clk 0:02:35]} 2. Nc3 {[%clk 0:03:01]}  d5 {[%clk 0:02:35]} 3. Bf4 {[%clk 0:03:01]}  c5 {[%clk 0:02:35]} 4. e4 {[%clk 0:03:02]}  Nxe4 {[%clk 0:02:34]} 5. Nxe4 {[%clk 0:03:03]}  dxe4 {[%clk 0:02:34]} 6. dxc5 {[%clk 0:03:03]}  Qa5+ {[%clk 0:02:35]} 7. c3 {[%clk 0:03:04]}  Qxc5 {[%clk 0:02:35]} 8. Qa4+ {[%clk 0:03:05]}  Nc6 {[%clk 0:02:35]} 9. Qxe4 {[%clk 0:03:05]}  g6 {[%clk 0:02:35]} 10. Nf3 {[%clk 0:03:06]}  Bg7 {[%clk 0:02:34]} 11. Rd1 {[%clk 0:03:06]}  O-O {[%clk 0:02:34]} 12. Be3 {[%clk 0:03:07]}  Qa5 {[%clk 0:02:34]} 13. Bc4 {[%clk 0:03:07]}  Bf5 {[%clk 0:02:33]} 14. Qh4 {[%clk 0:03:07]}  Rad8 {[%clk 0:02:28]} 15. O-O {[%clk 0:03:07]}  Rxd1 {[%clk 0:02:26]} 16. Rxd1 {[%clk 0:03:08]}  Rd8 {[%clk 0:02:23]} 17. Re1 {[%clk 0:03:06]}  h5 {[%clk 0:02:11]} 18. h3 {[%clk 0:03:04]}  Ne5 {[%clk 0:01:50]} 19. Nxe5 {[%clk 0:02:56]}  Qxe5 {[%clk 0:01:45]} 20. Bd2 {[%clk 0:02:41]}  Bf6 {[%clk 0:00:58]} 21. Rxe5 {[%clk 0:02:39]}  Bxh4 {[%clk 0:00:58]} 22. Rd5 {[%clk 0:02:39]}  Rxd5 {[%clk 0:00:51]} 23. Bxd5 {[%clk 0:02:40]}  Bc8 {[%clk 0:00:51]} 24. Be3 {[%clk 0:02:35]}  a6 {[%clk 0:00:51]} 25. Bb6 {[%clk 0:02:35]}  Bf6 {[%clk 0:00:49]} 26. Kf1 {[%clk 0:02:34]}  Be5 {[%clk 0:00:49]} 27. Ke2 {[%clk 0:02:34]}  Kf8 {[%clk 0:00:48]} 28. Kd3 {[%clk 0:02:33]}  e6 {[%clk 0:00:49]} 29. Bf3 {[%clk 0:02:33]}  Ke7 {[%clk 0:00:49]} 30. b4 {[%clk 0:02:32]}  h4 {[%clk 0:00:45]} 31. a4 {[%clk 0:02:32]}  g5 {[%clk 0:00:42]} 32. c4 {[%clk 0:02:21]}  f5 {[%clk 0:00:42]} 33. b5 {[%clk 0:02:13]}  axb5 {[%clk 0:00:31]} 34. cxb5 {[%clk 0:02:11]}  Bd6 {[%clk 0:00:29]} 35. Kc4 {[%clk 0:02:10]}  e5 {[%clk 0:00:30]} 36. Bd5 {[%clk 0:02:10]}  g4 {[%clk 0:00:28]} 37. a5 {[%clk 0:02:01]}  Bb8 {[%clk 0:00:19]} 38. Kb4 {[%clk 0:01:34]}  Bd6+ {[%clk 0:00:19]} 39. Bc5 {[%clk 0:01:33]}  Kd7 {[%clk 0:00:18]} 40. b6 {[%clk 0:01:24]}  Ke7 {[%clk 0:00:18]} 41. a6 {[%clk 0:01:22]}  bxa6 {[%clk 0:00:17]} 42. b7 {[%clk 0:01:23]}  Bxb7 {[%clk 0:00:08]} 43. Bxb7 {[%clk 0:01:24]}  a5+ {[%clk 0:00:09]} 44. Kb5 {[%clk 0:01:20]}  Bxc5 {[%clk 0:00:08]} 45. Kxc5 {[%clk 0:01:21]}  gxh3 {[%clk 0:00:06]} 46. gxh3 {[%clk 0:01:21]}  Kf6 {[%clk 0:00:06]} 47. Bc6 {[%clk 0:01:08]}  Kg5 {[%clk 0:00:06]} 48. Kc4 {[%clk 0:01:04]}  e4 {[%clk 0:00:05]} 49. Kc3 {[%clk 0:00:57]}  Kf4 {[%clk 0:00:05]} 50. Kd2 {[%clk 0:00:58]}  Kf3 {[%clk 0:00:03]} 51. Ke1 {[%clk 0:00:58]}  a4 {[%clk 0:00:04]} 52. Bxa4 {[%clk 0:00:58]}  e3 {[%clk 0:00:04]} 53. Bc6+ {[%clk 0:00:57]}  Kf4 {[%clk 0:00:04]} 54. f3 {[%clk 0:00:56]}  Kg3 {[%clk 0:00:05]} 55. Ke2 {[%clk 0:00:57]}  f4 {[%clk 0:00:02]} 56. Bd7 {[%clk 0:00:54]}  Kg2 {[%clk 0:00:02]} 57. Bg4 {[%clk 0:00:32]}  Kg1 {[%clk 0:00:02]} 58. Bc8 {[%clk 0:00:25]}  Kg2 {[%clk 0:00:02]} 59. Bd7 {[%clk 0:00:25]}  Kg1 {[%clk 0:00:03]} 60. Bb5 {[%clk 0:00:24]}  Kg2 {[%clk 0:00:04]} 61. Bd7 {[%clk 0:00:19]}  Kg1 {[%clk 0:00:04]} 62. Bg4 {[%clk 0:00:19]}  Kg2 {[%clk 0:00:04]} 63. Bf5 {[%clk 0:00:20]}  Kg1 {[%clk 0:00:05]} 64. Bg4 {[%clk 0:00:21]}  Kg2 {[%clk 0:00:05]} 65. Bf5 {[%clk 0:00:22]}  Kg1 {[%clk 0:00:06]} 66. Bg4 {[%clk 0:00:23]} 1/2-1/2


[Site "https://www.chess.com"]